Cogmind - Beta 11.1 @@@ ROGUE MODE // 2022.07.14 @ 01:40:58 Player: SearedSteak Result: Destroyed by as-46996 with Assembled Blade Performance ------------- Evolutions (0) 0 Regions Visited (3) 600 Robots Destroyed (10) 50 Value Destroyed (145) 145 Prototype IDs (0) 0 Alien Tech Used (0) 0 Bonus (-51) -51 TOTAL SCORE: 744 Bonus ------- Friendly Fire -51 Cogmind --------- Core Integrity 0/250 Matter 283/400 Energy 81/100 System Corruption 0% Temperature Cool (63) Movement Core (100) Ox1 Location -10/Exiles Parts ------- > --- POWER (1) -------- (None) > --- PROPULSION (2) --- (None) > --- UTILITY (2) ------ Medium Matter Pod Signal Interpreter > --- WEAPON (2) ------- Beam Cannon > --- INVENTORY (5) ---- Ion Engine Huge Storage Unit Peak State ------------ > --- POWER ------------ Ion Engine > --- PROPULSION ------- Aluminum Leg Flight Unit > --- UTILITY ---------- Signal Interpreter Seismic Detector > --- WEAPON ----------- Assault Rifle Light Assault Rifle > --- INVENTORY -------- Ion Engine Huge Storage Unit Medium Matter Pod Beam Cannon [Rating: 7] Favorites ----------- Power Ion Engine Engine Ion Engine Propulsion Aluminum Leg Leg Aluminum Leg Flight Unit Flight Unit Utility Signal Interpreter Device Seismic Detector Storage Huge Storage Unit Processor Signal Interpreter Weapon Assault Rifle Energy Cannon Beam Cannon Ballistic Gun Assault Rifle Build | -11 -10 -10 -10 ------- Run | Scr Mat Min Exi Slots Evolved . | . . . . Power . | . . . . Propulsion . | . . . . Utility . | . . . . Weapon . | . . . . Parts Attached 15 | 4 3 6 2 Power 3 | . 1 2 . Engine 3 | . 1 2 . Core . | . . . . Reactor . | . . . . Propulsion 5 | 2 1 2 . Treads . | . . . . Leg 4 | 2 1 1 . Wheel . | . . . . Hover . | . . . . Flight 1 | . . 1 . Utility 4 | . 1 2 1 Device 1 | . . 1 . Storage 2 | . 1 . 1 Processor 1 | . . 1 . Hackware . | . . . . Protection . | . . . . Artifact . | . . . . Weapon 3 | 2 . . 1 Energy Gun . | . . . . Energy Cannon 1 | . . . 1 Ballistic Gun 2 | 2 . . . Ballistic Cannon . | . . . . Launcher . | . . . . Special Weapon . | . . . . Impact Weapon . | . . . . Slashing Weapon . | . . . . Piercing Weapon . | . . . . Special Melee Weapon . | . . . . Unidentified Prototypes . | . . . . Parts Lost 5 | . . . 5 Power 1 | . . . 1 Propulsion 1 | . . . 1 Utility 1 | . . . 1 Weapon 2 | . . . 2 Highest Loss Streak 5 | . . . 5 To Critical Strikes . | . . . . Average Slot Usage (%) 76 | . 69 77 82 Engine 13 | . 13 14 13 Leg 15 | . 26 16 . Flight 5 | . . 4 14 Device 6 | . . 6 13 Processor 7 | . . 7 14 Ballistic Gun 27 | . 28 28 26 Naked Turns . | . . . . Heaviest Build 88 | 3 88 9 9 Greatest Support 20 | 20 20 20 4 Greatest Overweight (x) 4 | . 4 2 2 Average Overweight (x) . | . . . 1 Largest Inventory Capacity 25 | 5 25 5 5 Average Capacity 5 | 5 6 5 5 Most Carried 5 | 2 4 5 4 Average Carried 3 | . 2 4 3 Final Capacity 5 | 5 5 5 5 Final Carried 4 | 1 4 4 2 Class Distribution -------------------- 100% | Mutant Dominant Class ---------------- Mutant | -10/Materials Mutant | -10/Mines Mutant | -10/Exiles Resources | -11 -10 -10 -10 ----------- Run | Scr Mat Min Exi Matter Collected 412 | 127 16 269 . Remotely . | . . . . Salvage Created 263 | . 50 213 . Parts 20 | . 6 14 . Haulers Intercepted . | . . . . Recyclers Shooed 1 | . . 1 . Parts Field Recycled . | . . . . Retrieved Matter . | . . . . Parts Self-Destructed . | . . . . Prevented . | . . . . Kills | -11 -10 -10 -10 ------- Run | Scr Mat Min Exi Combat Hostiles Destroyed 7 | . 3 4 . Guns 7 | . 3 4 . Classes Destroyed 5 | . 1 4 . Worker 1 | . . 1 . Tunneler 1 | . . 1 . Recycler 1 | . . 1 . Swarmer 5 | . 3 2 . Grunt 2 | . . 2 . Best Kill Streak 3 | . 3 2 . Combat Bots Only 3 | . 3 2 . Max Kills in Single Turn 2 | . 2 1 . Gunslinging 1 | . 1 . . Exploded . | . . . . Melee . | . . . . Uniques/NPCs Destroyed . | . . . . Combat | -11 -10 -10 -10 -------- Run | Scr Mat Min Exi Damage Taken 671 | . 83 245 343 Core 258 | . 18 88 152 Absorbed by Shields . | . . . . Regen/Repaired (Parts) 31 | . 31 . . Core Remaining (%) 100 | 100 . . . Volleys Fired 28 | . 5 19 4 Largest 2 | . 2 2 2 Hottest 60 | . 40 40 60 Shots Fired 54 | . 10 38 6 Gun 52 | . 10 38 4 Cannon 2 | . . . 2 Launcher . | . . . . Special . | . . . . Kinetic 52 | . 10 38 4 Thermal 2 | . . . 2 Explosive . | . . . . Electromagnetic . | . . . . Robot Hit Streak 16 | . 6 16 5 Robot Miss Streak 4 | . 4 1 1 Penetration Max . | . . . . Secondary Targets 2 | . 1 1 . Max Gunslinging Chain 1 | . 1 1 . Shots Hit Robots 37 | . 6 26 5 Core Hits 20 | . 4 14 2 Critical Kills . | . . . . Critical Parts Destroyed 2 | . . 2 . Critical Strikes 2 | . . 2 . Destroy 2 | . . 2 . Melee Attacks . | . . . . Impact . | . . . . Slashing . | . . . . Piercing . | . . . . Sneak Attacks . | . . . . Combat Hostiles . | . . . . Follow-up Attacks . | . . . . Damage Inflicted 424 | . 78 286 60 Guns 405 | . 78 286 41 Cannons 19 | . . . 19 Explosions . | . . . . Melee . | . . . . Ramming . | . . . . Kinetic 405 | . 78 286 41 Thermal 19 | . . . 19 Explosive . | . . . . Electromagnetic . | . . . . Impact . | . . . . Slashing . | . . . . Piercing . | . . . . Highest Corruption . | . . . . Average Corruption . | . . . . Corruption Purged . | . . . . Corruption Blocked . | . . . . Overload Shots . | . . . . Overflow Damage . | . . . . Projectiles . | . . . . Explosions . | . . . . Melee . | . . . . Knockbacks . | . . . . Impact . | . . . . Kinetic . | . . . . Secondary . | . . . . Self-Inflicted Damage . | . . . . Shots . | . . . . Rammed . | . . . . Targets Rammed . | . . . . Kicked . | . . . . Crushed . | . . . . Highest Temperature 43 | . . 18 43 Average Temperature 9 | . . 9 10 Received Heat Transfer 216 | . . 96 120 Siege Activations . | . . . . Robots Corrupted . | . . . . Combat Hostiles . | . . . . Parts Fried . | . . . . Impact Corruptions . | . . . . Robots Melted . | . . . . Combat Hostiles . | . . . . Parts Melted . | . . . . Heat Transferred 46 | . . . 46 Parts Sabotaged . | . . . . Parts Stolen . | . . . . Parts Stripped . | . . . . Power Chain Reactions . | . . . . Missiles Intercepted . | . . . . Alert | -11 -10 -10 -10 ------- Run | Scr Mat Min Exi Peak Influence 169 | . 100 169 . Initial 39 | . . 39 . Average 49 | . 39 58 . Maximum Alert Level . | . . . . Low Security (%) 100 | 100 100 100 . Level 1 . | . . . . Level 2 . | . . . . Level 3 . | . . . . Level 4 . | . . . . Level 5 . | . . . . High Security . | . . . . Max Security . | . . . . Squads Dispatched 1 | . 1 . . Investigation 1 | . 1 . . Extermination . | . . . . Reinforcement . | . . . . Assault . | . . . . Garrison . | . . . . Intercept . | . . . . Searches Triggered . | . . . . Construction Impeded . | . . . . Haulers Reinforced . | . . . . Active Scanning Responses . | . . . . Cargo Convoy Interrupts . | . . . . Stealth | -11 -10 -10 -10 --------- Run | Scr Mat Min Exi Distress Signals 1 | . 1 . . Communications Jammed . | . . . . Distress Signals . | . . . . Times Spotted 19 | . 6 5 8 Peak Tracking Total 9 | . 4 3 9 Tactical Retreats 2 | . . 2 . Traps | -11 -10 -10 -10 ------- Run | Scr Mat Min Exi Traps Triggered 1 | . 1 . . Indirectly . | . . . . Trap Hack Attempts . | . . . . Triggered . | . . . . Disarmed . | . . . . Reprogrammed . | . . . . Reused . | . . . . Traps Extracted . | . . . . Installed . | . . . . Triggered . | . . . . Machines | -11 -10 -10 -10 ---------- Run | Scr Mat Min Exi Machines Disabled . | . . . . Max in Single Turn . | . . . . Machines Sabotaged . | . . . . Garrisons Compromised . | . . . . Overloaded Fab Kills . | . . . . Hacking | -11 -10 -10 -10 --------- Run | Scr Mat Min Exi Machines Accessed 1 | . 1 . . Terminals . | . . . . Fabricators . | . . . . Repair Stations 1 | . 1 . . Recycling Units . | . . . . Scanalyzers . | . . . . Garrison Access . | . . . . Total Hacks 2 | . 2 . . Successful 2 | . 2 . . Failed . | . . . . Catastrophic . | . . . . Database Lockouts . | . . . . Manual . | . . . . Terminals . | . . . . Fabricators . | . . . . Repair Stations 2 | . 2 . . Recycling Units . | . . . . Scanalyzers . | . . . . Garrison Access . | . . . . Terminal Hacks . | . . . . Fabricator Hacks . | . . . . Repair Station Hacks 2 | . 2 . . Scan Component 1 | . 1 . . Repair 1 | . 1 . . Recycling Unit Hacks . | . . . . Scanalyzer . | . . . . Garrison Access Hacks . | . . . . Unauthorized Hacks . | . . . . Terminals . | . . . . Fabricators . | . . . . Repair Stations . | . . . . Recycling Units . | . . . . Scanalyzers . | . . . . Garrison Access . | . . . . Data Cores Recovered . | . . . . Used . | . . . . Hacking Detections 1 | . 1 . . Full Trace Events . | . . . . Feedback Events . | . . . . Feedback Blocked . | . . . . Robot Schematics Acquired . | . . . . Robots Built . | . . . . Authchips . | . . . . Time . | . . . . Total Robot Build Rating . | . . . . Part Schematics Acquired . | . . . . Parts Built . | . . . . Authchips . | . . . . Time . | . . . . Total Part Build Rating . | . . . . Parts Repaired 1 | . 1 . . Time 26 | . 26 . . Parts Recycled . | . . . . Recycled Matter . | . . . . Retrieved Matter . | . . . . Retrieved Components . | . . . . Parts Scanalyzed . | . . . . Part Schematics Acquired . | . . . . Parts Damaged . | . . . . Bothacking | -11 -10 -10 -10 ------------ Run | Scr Mat Min Exi Used RIF Installer . | . . . . Robots Hacked . | . . . . Non-combat . | . . . . Combat . | . . . . Robot Hacks Applied . | . . . . Relay Couplers Released . | . . . . Fabnet Peak Effective % . | . . . . Robots Rewired . | . . . . Allies Hacked . | . . . . Hacks Repelled . | . . . . Allies | -11 -10 -10 -10 -------- Run | Scr Mat Min Exi Total Allies . | . . . . Largest Group . | . . . . Highest-Rated Group . | . . . . Highest-Rated Ally . | . . . . Total Orders . | . . . . Ally Attacks . | . . . . Total Damage . | . . . . Kills . | . . . . Allies Corrupted . | . . . . Allies Melted . | . . . . Intel | -11 -10 -10 -10 ------- Run | Scr Mat Min Exi Robot Analysis Total . | . . . . Derelict Logs Recovered . | . . . . Drone Launches . | . . . . Drone Recoveries . | . . . . Exploration | -11 -10 -10 -10 ------------- Run | Scr Mat Min Exi Turns Passed 1016 | 59 223 558 176 Spaces Moved 621 | 49 136 342 94 Core 12 | 12 . . . Treads . | . . . . Legs 432 | 37 136 259 . Wheels . | . . . . Hover . | . . . . Flight 177 | . . 83 94 Fastest Speed 40 | 50 120 120 40 Average Speed 139 | 102 126 139 174 Slowest Speed 400 | 120 400 210 200 Overloaded Moves . | . . . . Propulsion Burnouts . | . . . . Robots Hopped . | . . . . Cave-ins Triggered . | . . . . Exploration Rate (%) 30 | 3 26 68 23 Regions Visited 3 Branch Regions 2 Pre-discovered Areas . | . . . . Known Exits Taken 1 | . . 1 . Unknown Exits Taken 2 | 1 1 . . Scrap Searched 2 | . . 2 . Spaces Dug . | . . . . Terrain Destroyed . | . . . . Melee . | . . . . Projectile . | . . . . AOE . | . . . . Terrain Rammed . | . . . . Walls Destroyed . | . . . . Machines Disabled . | . . . . Actions | -11 -10 -10 -10 --------- Run | Scr Mat Min Exi Total 725 | 57 179 389 100 Wait 45 | . 30 15 . Move 618 | 48 135 341 94 Hop . | . . . . Pick Up 14 | 5 5 4 . Fast Attach . | . . . . Attach 12 | 4 3 3 2 Detach 1 | . 1 . . Swap 3 | . . 3 . Drop 4 | . . 4 . Fire 28 | . 5 19 4 Melee . | . . . . Ram . | . . . . Kick . | . . . . Crush . | . . . . Escape Stasis . | . . . . Rewire . | . . . . Trap . | . . . . Miscellaneous . | . . . . Route ------- -11/Scrapyard -10/Materials -10/Mines -10/Exiles (discovered 1 exit: [*Min]) History --------- Turn | Location | Event 2 | -11/Scrapyard | Discovered new exit (range 16) 60 | -11/Scrapyard | Entered Materials 208 | -10/Materials | Repaired Aluminum Leg 269 | -10/Materials | Discovered new exit (range 11) 283 | -10/Materials | Entered Mines 306 | -10/Mines | Build established: Mutant 833 | -10/Mines | Deemed a non-threat by the Exiles lab entrance 833 | -10/Mines | Discovered new exit (range 5) 839 | -10/Mines | Identified exit to Exiles 841 | -10/Mines | Entered Exiles 879 | -10/Exiles | Discovered new exit (range 14) 909 | -10/Exiles | Met 8R-AWN 943 | -10/Exiles | Met EX-HEX 998 | -10/Exiles | Attacked by the Exiles 1005 | -10/Exiles | Core integrity fell below 50% 1016 | -10/Exiles | Core integrity fell below 20% 1017 | -10/Exiles | Destroyed by as-46996 with Assembled Blade Last Messages --------------- Seismic Detector destroyed. Penetrated by HV Slug. Ion Engine destroyed. Penetrated by HV Slug. HV Slug penetrates Wall. HV Slug penetrates as-12224. as-12224 suffers critical hit (Destroy). as-12224 destroyed. HV Slug penetrates as-89901. Penetrated by HV Slug. HV Slug penetrates Wall. HV Slug penetrates as-80598. as-80598 suffers critical hit (Destroy). Penetrated by HV Slug. HV Slug penetrates Wall. Penetrated by HV Slug. HV Slug penetrates Wall. Penetrated by HV Slug. Flight Unit destroyed. HV Slug penetrates Wall. Map ----- +----------------------------------------------------+ | ?????????????????????????????????????????????????? | | ?????????????????????????????????????????????????? | | ?????????????????????????????????????????????????? | | ?????????????????????????????????????????????????? | | ?????????????????????????????????????????????????? | | ?????????????????????????????????????????????????? | | ?????????????????????????????????????????????????? | | ?????????????????????????????????????????????????? | | ?????????????????????????????????????????????????? | | ?????????????????????????????????????????????????# | | ????????????????????????????????????????????????? | | ???????###??????????????????????????????????????? | | ###"?"""""""##??????????????????????????????????? | | " """ """"##????????????????????????????????## | | "" " #???????????????????????????????## | | " """#???????????????????????????????# | | " "#???????????#####???????????????# | | " "##?????????##" #??????????????## | | ""###???????#" #?????????????## | | """#??????##" ##????????????# | | "#????### ###????????### | | ##???# ########## | | " ##?## #""""## # | | "" ### * # | | % gaaaa ;# * | | " ca@#### | | ""#?#"""""#### | | a#"""##?#######??#### * | | ######??????????????##### | | ##???????????????????????### | | " ##??????????????????????????### | | """ ""#?????????????????????????????## | | " " ""#" "##??????????????????????????????# | | """ """##"""""""##???????????????????????????????# | | ?#""????#########????????????????????????????????? | | ?##??????????????????????????????????????????????? | | ?????????????????????????????????????????????????? | | ?????????????????????????????????????????????????? | | ?????????????????????????????????????????????????? | | ?????????????????????????????????????????????????? | | ?????????????????????????????????????????????????? | | ?????????????????????????????????????????????????? | | ?????????????????????????????????????????????????? | | ?????????????????????????????????????????????????? | | ?????????????????????????????????????????????????? | | ?????????????????????????????????????????????????? | | ?????????????????????????????????????????????????? | | ?????????????????????????????????????????????????? | | ?????????????????????????????????????????????????? | | ?????????????????????????????????????????????????? | +----------------------------------------------------+ Best States ------------- Heat Dissipation 25 Energy Generation 10 Energy Capacity 250 Matter Stores 300 Matter Capacity 400 Sight Range 16 Terrain Scan Density 10 Evasion (%) 62 Item Schematics ----------------- None Robot Schematics ------------------ None Fabricated ------------ Nothing Alien Tech Used ----------------- None Achievements -------------- None Challenges ------------ None Game ------ Seed SupersonicDynamicSlayer Manual? 0 Play Time 00:10:08 Cumulative 5.1 hours Start 2022.06.18 @ 23:23:35 End 2022.07.14 @ 01:40:58 Sessions 2 Manual Loads 0 Difficulty Rogue Special Mode None Game No. 17 Rogue 17 Adventurer 0 Explorer 0 Win Type - Total 0 Types 0/0/0/0/0/0/0/0/0 Lore% 5 Gallery% 11 Achievement% 8 Wizard Run 0 Options --------- ASCII 0 Keyboard 0 Movement Mouse Keybinds 0 Fullscreen 1 Font 18/SmallcapsGlow Map View 76x50 Tactical HUD 0 Map Filters NONE Filters NONE Steam 1 RUN: d36c3eab-c139-4ab2-a02a-58ac66e5279f